[Event "Early-Titled-Tuesday-Blitz-February-06-2024"]
[Site "Chess.com"]
[Date "2024.02.06"]
[Round "4"]
[White "Genghis_K"]
[Black "AlexTruskavetsky"]
[Result "1/2-1/2"]
[WhiteElo "2904"]
[BlackElo "2727"]
[TimeControl "180+1"]
[EndTime "8:40:39 PST"]
[Termination "Game drawn - insufficient material"]

1. e4 {[%clk 0:03:00.9]} 1... c5 {[%clk 0:02:53.8]} 2. Nf3 {[%clk 0:03:01.3]}
2... Nc6 {[%clk 0:02:53.9]} 3. Bb5 {[%clk 0:03:00.3]} 3... g6 {[%clk 0:02:53.2]}
4. O-O {[%clk 0:03:00.4]} 4... Bg7 {[%clk 0:02:53.4]} 5. c3 {[%clk 0:03:01]}
5... e5 {[%clk 0:02:53.6]} 6. d4 {[%clk 0:03:00.6]} 6... cxd4 {[%clk 0:02:53.1]}
7. cxd4 {[%clk 0:03:01.1]} 7... exd4 {[%clk 0:02:53.8]} 8. Bf4 {[%clk
0:03:01.8]} 8... Nge7 {[%clk 0:02:50.1]} 9. Bd6 {[%clk 0:02:59.9]} 9... O-O
{[%clk 0:02:50.2]} 10. Nbd2 {[%clk 0:02:51.8]} 10... a6 {[%clk 0:02:50.2]} 11.
Bc4 {[%clk 0:02:36.3]} 11... b5 {[%clk 0:02:49.9]} 12. Bd5 {[%clk 0:02:33.6]}
12... Nxd5 {[%clk 0:02:42]} 13. Bxf8 {[%clk 0:02:29.9]} 13... Qxf8 {[%clk
0:02:40.7]} 14. exd5 {[%clk 0:02:30]} 14... Nb4 {[%clk 0:02:41]} 15. Nb3 {[%clk
0:02:14.3]} 15... Nxd5 {[%clk 0:02:41.1]} 16. Nbxd4 {[%clk 0:02:13.3]} 16... Bb7
{[%clk 0:02:41.5]} 17. Rc1 {[%clk 0:02:11.5]} 17... Qd6 {[%clk 0:02:35.6]} 18.
Re1 {[%clk 0:02:09.5]} 18... Nf4 {[%clk 0:02:36]} 19. Nf5 {[%clk 0:01:44.2]}
19... Qxd1 {[%clk 0:01:47.5]} 20. Ne7+ {[%clk 0:01:44.3]} 20... Kf8 {[%clk
0:01:48.1]} 21. Rcxd1 {[%clk 0:01:44.9]} 21... Rd8 {[%clk 0:01:42.2]} 22. Ng5
{[%clk 0:01:38.4]} 22... Ne6 {[%clk 0:01:33.2]} 23. Rxe6 {[%clk 0:00:54.7]}
23... fxe6 {[%clk 0:01:25.6]} 24. Nxg6+ {[%clk 0:00:54.2]} 24... hxg6 {[%clk
0:01:25]} 25. Nxe6+ {[%clk 0:00:53.6]} 25... dxe6 {[%clk 0:01:25.5]} 26. Rxd8+
{[%clk 0:00:54.1]} 26... Ke7 {[%clk 0:01:26.2]} 27. Rb8 {[%clk 0:00:48]} 27...
Be4 {[%clk 0:01:24.5]} 28. b3 {[%clk 0:00:41.7]} 28... Bd4 {[%clk 0:01:19.3]}
29. a4 {[%clk 0:00:38.1]} 29... Bd3 {[%clk 0:01:18.1]} 30. h4 {[%clk 0:00:30.3]}
30... Bc3 {[%clk 0:01:01.5]} 31. axb5 {[%clk 0:00:18.9]} 31... axb5 {[%clk
0:01:01.6]} 32. g4 {[%clk 0:00:19.6]} 32... b4 {[%clk 0:00:55]} 33. h5 {[%clk
0:00:19.6]} 33... gxh5 {[%clk 0:00:55.6]} 34. gxh5 {[%clk 0:00:20.5]} 34... Kf6
{[%clk 0:00:52.7]} 35. Rg8 {[%clk 0:00:14]} 35... Kf7 {[%clk 0:00:51.8]} 36. Rg3
{[%clk 0:00:09.9]} 36... Bc2 {[%clk 0:00:44.9]} 37. h6 {[%clk 0:00:10.6]} 37...
Bd2 {[%clk 0:00:30]} 38. Rg4 {[%clk 0:00:05.4]} 38... Bf5 {[%clk 0:00:17.3]} 39.
Rd4 {[%clk 0:00:03]} 39... Bc3 {[%clk 0:00:16.4]} 40. Rd7+ {[%clk 0:00:03.6]}
40... Kg6 {[%clk 0:00:15.6]} 41. h7 {[%clk 0:00:03.6]} 41... Kh6 {[%clk
0:00:16.1]} 42. Re7 {[%clk 0:00:03.9]} 42... Bxh7 {[%clk 0:00:15]} 43. Rxe6+
{[%clk 0:00:04.4]} 43... Kg5 {[%clk 0:00:15.7]} 44. Re2 {[%clk 0:00:02.7]} 44...
Bg8 {[%clk 0:00:16.1]} 45. Re8 {[%clk 0:00:01.1]} 45... Bxb3 {[%clk 0:00:16.3]}
46. Kf1 {[%clk 0:00:02]} 46... Bc2 {[%clk 0:00:16.2]} 47. Rc8 {[%clk 0:00:01.2]}
47... b3 {[%clk 0:00:16.8]} 48. Rc5+ {[%clk 0:00:01.8]} 48... Kf4 {[%clk
0:00:08.5]} 49. Rc4+ {[%clk 0:00:02.3]} 49... Ke5 {[%clk 0:00:07.1]} 50. Rxc3
{[%clk 0:00:02.9]} 50... b2 {[%clk 0:00:07.8]} 51. Re3+ {[%clk 0:00:03.7]} 51...
Kd4 {[%clk 0:00:07.8]} 52. Re1 {[%clk 0:00:04.6]} 52... Kc3 {[%clk 0:00:08]} 53.
Ke2 {[%clk 0:00:04.8]} 53... Bb3 {[%clk 0:00:08.5]} 54. Ke3 {[%clk 0:00:04.3]}
54... Bc2 {[%clk 0:00:07.3]} 55. f4 {[%clk 0:00:04.5]} 55... Bf5 {[%clk
0:00:07.2]} 56. Rf1 {[%clk 0:00:02.9]} 56... Bd3 {[%clk 0:00:06.6]} 57. Rd1
{[%clk 0:00:03.1]} 57... Bf5 {[%clk 0:00:07.1]} 58. Re1 {[%clk 0:00:03.8]} 58...
Kc2 {[%clk 0:00:06.8]} 59. Re2+ {[%clk 0:00:03.7]} 59... Kc3 {[%clk 0:00:07.3]}
60. Rxb2 {[%clk 0:00:02.9]} 60... Kxb2 {[%clk 0:00:08.2]} 61. Kd4 {[%clk
0:00:03.7]} 61... Kb3 {[%clk 0:00:08.9]} 62. Ke5 {[%clk 0:00:04.6]} 62... Bb1
{[%clk 0:00:09.5]} 63. f5 {[%clk 0:00:05.5]} 63... Bxf5 {[%clk 0:00:10.3]}
1/2-1/2

[Event "Early-Titled-Tuesday-Blitz-February-06-2024"]
[Site "Chess.com"]
[Date "2024.02.06"]
[Round "4"]
[White "Ural_bogatyr"]
[Black "Meri-Arabidze"]
[Result "1-0"]
[WhiteElo "2550"]
[BlackElo "2731"]
[TimeControl "180+1"]
[EndTime "8:40:44 PST"]
[Termination "Ural_bogatyr won on time"]

1. d4 {[%clk 0:03:00.9]} 1... Nf6 {[%clk 0:02:59.7]} 2. Nc3 {[%clk 0:03:00.3]}
2... d5 {[%clk 0:02:54.8]} 3. Bf4 {[%clk 0:02:58.9]} 3... a6 {[%clk 0:02:54]} 4.
e3 {[%clk 0:02:58.8]} 4... e6 {[%clk 0:02:54.4]} 5. g4 {[%clk 0:02:58.2]} 5...
b5 {[%clk 0:02:52.1]} 6. g5 {[%clk 0:02:57.6]} 6... Nfd7 {[%clk 0:02:51.9]} 7.
Nf3 {[%clk 0:02:54.5]} 7... Bb7 {[%clk 0:02:51.4]} 8. h4 {[%clk 0:02:54]} 8...
Nb6 {[%clk 0:02:48.4]} 9. Bh3 {[%clk 0:02:52.3]} 9... b4 {[%clk 0:02:47.3]} 10.
Ne2 {[%clk 0:02:52.1]} 10... Bd6 {[%clk 0:02:43.8]} 11. Kf1 {[%clk 0:02:51.2]}
11... Nc6 {[%clk 0:02:39]} 12. Kg2 {[%clk 0:02:49]} 12... Ne7 {[%clk 0:02:38.1]}
13. h5 {[%clk 0:02:47]} 13... Nf5 {[%clk 0:02:34]} 14. Bxf5 {[%clk 0:02:35.5]}
14... exf5 {[%clk 0:02:33.9]} 15. g6 {[%clk 0:02:33.6]} 15... fxg6 {[%clk
0:02:09.4]} 16. hxg6 {[%clk 0:02:34.5]} 16... h6 {[%clk 0:02:09.9]} 17. Ng5
{[%clk 0:02:23.5]} 17... Bxf4 {[%clk 0:02:01.6]} 18. exf4 {[%clk 0:02:22.2]}
18... Qf6 {[%clk 0:01:53.7]} 19. Ng3 {[%clk 0:02:11.6]} 19... Qxg6 {[%clk
0:01:36.5]} 20. Qe2+ {[%clk 0:02:04.4]} 20... Kd7 {[%clk 0:01:36.5]} 21. Nf3
{[%clk 0:02:04.2]} 21... Kc8 {[%clk 0:01:01.9]} 22. Ne5 {[%clk 0:02:02.4]} 22...
Qe6 {[%clk 0:01:00.2]} 23. Qh5 {[%clk 0:01:57.5]} 23... Rf8 {[%clk 0:00:57.8]}
24. Rae1 {[%clk 0:01:55.9]} 24... Qf6 {[%clk 0:00:30.7]} 25. Ng6 {[%clk
0:01:47.2]} 25... Rd8 {[%clk 0:00:24.6]} 26. Re5 {[%clk 0:01:32.9]} 26... Nc4
{[%clk 0:00:21.6]} 27. Qxf5+ {[%clk 0:01:12.3]} 27... Qxf5 {[%clk 0:00:21.8]}
28. Rxf5 {[%clk 0:01:13.2]} 28... Nd6 {[%clk 0:00:21.5]} 29. Re5 {[%clk
0:01:11.3]} 29... Bc6 {[%clk 0:00:18.9]} 30. Re7 {[%clk 0:01:07.8]} 30... Rd7
{[%clk 0:00:18.6]} 31. Rhe1 {[%clk 0:01:04.2]} 31... Kb7 {[%clk 0:00:16.1]} 32.
Rxd7 {[%clk 0:01:04.3]} 32... Bxd7 {[%clk 0:00:17]} 33. Re7 {[%clk 0:01:04.6]}
33... Bf5 {[%clk 0:00:15.2]} 34. Rxg7 {[%clk 0:00:58.8]} 34... Bxc2 {[%clk
0:00:15.1]} 35. Ne7 {[%clk 0:00:58.4]} 35... Be4+ {[%clk 0:00:03.9]} 36. f3
{[%clk 0:00:54.4]} 36... Bb1 {[%clk 0:00:03.1]} 37. Nxd5 {[%clk 0:00:53.9]}
37... Rc8 {[%clk 0:00:03.4]} 38. Nxb4 {[%clk 0:00:24.7]} 38... a5 {[%clk
0:00:03.3]} 39. Nd5 {[%clk 0:00:23.8]} 39... Bxa2 {[%clk 0:00:03.8]} 40. Nc3
{[%clk 0:00:23.7]} 40... Bc4 {[%clk 0:00:03.4]} 41. Nce4 {[%clk 0:00:23]} 41...
Kc6 {[%clk 0:00:01.7]} 42. Rg6 {[%clk 0:00:12.7]} 42... Rb8 {[%clk 0:00:02]} 43.
Rxh6 {[%clk 0:00:11.7]} 43... Rxb2+ {[%clk 0:00:01.9]} 44. Kh3 {[%clk
0:00:12.2]} 44... a4 {[%clk 0:00:02.6]} 45. Nf5 {[%clk 0:00:10]} 45... a3 {[%clk
0:00:02.2]} 46. Nfxd6 {[%clk 0:00:10]} 46... cxd6 {[%clk 0:00:03]} 47. Nxd6
{[%clk 0:00:09.4]} 47... Bf1+ {[%clk 0:00:02.8]} 48. Kg4 {[%clk 0:00:08.2]}
48... Kd5 {[%clk 0:00:03.5]} 49. Ne4 {[%clk 0:00:07.7]} 49... Rg2+ {[%clk
0:00:03.2]} 50. Kf5 {[%clk 0:00:07.5]} 50... a2 {[%clk 0:00:03.5]} 51. Rd6+
{[%clk 0:00:07.4]} 51... Kc4 {[%clk 0:00:03.4]} 52. Ra6 {[%clk 0:00:07.9]} 52...
Kb3 {[%clk 0:00:03.7]} 53. Ra7 {[%clk 0:00:04.6]} 53... Bd3 {[%clk 0:00:03.6]}
54. d5 {[%clk 0:00:04.3]} 54... Rg1 {[%clk 0:00:03.5]} 55. d6 {[%clk 0:00:03.6]}
55... Bb5 {[%clk 0:00:03.2]} 56. Ke6 {[%clk 0:00:02.2]} 56... a1=Q {[%clk
0:00:01.7]} 57. Rxa1 {[%clk 0:00:03.1]} 57... Rxa1 {[%clk 0:00:02.2]} 58. f5
{[%clk 0:00:03.3]} 58... Rd1 {[%clk 0:00:02]} 59. f6 {[%clk 0:00:03.1]} 59...
Bc4+ {[%clk 0:00:02.1]} 60. Ke7 {[%clk 0:00:03.2]} 60... Rd3 {[%clk 0:00:02]}
61. d7 {[%clk 0:00:02.7]} 1-0

[Event "Early-Titled-Tuesday-Blitz-February-06-2024"]
[Site "Chess.com"]
[Date "2024.02.06"]
[Round "4"]
[White "Nf3c5"]
[Black "Vladimir_Zakhartsov"]
[Result "0-1"]
[WhiteElo "2567"]
[BlackElo "2828"]
[TimeControl "180+1"]
[EndTime "8:40:55 PST"]
[Termination "Vladimir_Zakhartsov won by resignation"]

1. d4 {[%clk 0:03:00.9]} 1... Nf6 {[%clk 0:03:00]} 2. Nf3 {[%clk 0:02:59.2]}
2... e6 {[%clk 0:02:59.9]} 3. e3 {[%clk 0:02:58.8]} 3... d5 {[%clk 0:02:56.8]}
4. Bd3 {[%clk 0:02:47]} 4... Bd6 {[%clk 0:02:53.7]} 5. b3 {[%clk 0:02:43.8]}
5... Nbd7 {[%clk 0:02:53.1]} 6. Bb2 {[%clk 0:02:44.2]} 6... b6 {[%clk
0:02:53.6]} 7. Nbd2 {[%clk 0:02:44.2]} 7... Bb7 {[%clk 0:02:54.1]} 8. Ne5 {[%clk
0:02:37.6]} 8... O-O {[%clk 0:02:50.7]} 9. Qf3 {[%clk 0:02:31.9]} 9... c5 {[%clk
0:02:47.5]} 10. Qh3 {[%clk 0:02:27.6]} 10... h6 {[%clk 0:02:41.3]} 11. f4 {[%clk
0:01:15.1]} 11... cxd4 {[%clk 0:02:37.4]} 12. exd4 {[%clk 0:01:10]} 12... Ne4
{[%clk 0:02:33.4]} 13. Bxe4 {[%clk 0:00:53.2]} 13... dxe4 {[%clk 0:02:31.9]} 14.
Ndc4 {[%clk 0:00:53.6]} 14... Nf6 {[%clk 0:02:12.6]} 15. Ne3 {[%clk 0:00:46.6]}
15... Bb4+ {[%clk 0:01:57]} 16. c3 {[%clk 0:00:33.5]} 16... Be7 {[%clk
0:01:46.9]} 17. O-O {[%clk 0:00:28.6]} 17... Nd5 {[%clk 0:01:40.4]} 18. c4
{[%clk 0:00:28.5]} 18... Nxe3 {[%clk 0:01:31]} 19. Qxe3 {[%clk 0:00:29.4]} 19...
Qe8 {[%clk 0:01:27.7]} 20. Rad1 {[%clk 0:00:25.8]} 20... f6 {[%clk 0:01:22.5]}
21. Ng4 {[%clk 0:00:25.8]} 21... Qg6 {[%clk 0:01:23]} 22. h3 {[%clk 0:00:25.4]}
22... Kh7 {[%clk 0:01:17.7]} 23. Kh1 {[%clk 0:00:25]} 23... Rad8 {[%clk
0:01:16.5]} 24. Qf2 {[%clk 0:00:20.6]} 24... Bd6 {[%clk 0:01:05.7]} 25. Ne3
{[%clk 0:00:19.7]} 25... Bc7 {[%clk 0:01:04.4]} 26. d5 {[%clk 0:00:17.6]} 26...
exd5 {[%clk 0:01:01]} 27. Nxd5 {[%clk 0:00:18.5]} 27... Bxd5 {[%clk 0:00:57.4]}
28. Rxd5 {[%clk 0:00:19.4]} 28... Rxd5 {[%clk 0:00:55.7]} 29. cxd5 {[%clk
0:00:20.3]} 29... f5 {[%clk 0:00:54.9]} 30. Rd1 {[%clk 0:00:20.6]} 30... Bd6
{[%clk 0:00:54.7]} 31. Be5 {[%clk 0:00:19.7]} 31... Re8 {[%clk 0:00:52.1]} 32.
Qd4 {[%clk 0:00:19.9]} 32... Rc8 {[%clk 0:00:44.6]} 33. b4 {[%clk 0:00:19.5]}
33... Rc2 {[%clk 0:00:38]} 34. Rg1 {[%clk 0:00:19.5]} 34... Rxa2 {[%clk
0:00:32.9]} 35. g4 {[%clk 0:00:17.8]} 35... Ra3 {[%clk 0:00:26.9]} 36. Kh2
{[%clk 0:00:16.6]} 36... Rd3 {[%clk 0:00:25.5]} 37. Qb2 {[%clk 0:00:15.2]} 37...
e3 {[%clk 0:00:21]} 38. gxf5 {[%clk 0:00:14.8]} 38... Qxg1+ {[%clk 0:00:12.8]}
39. Kxg1 {[%clk 0:00:14.6]} 39... Rd1+ {[%clk 0:00:13.5]} 40. Kg2 {[%clk
0:00:13.1]} 40... Rd2+ {[%clk 0:00:14.2]} 41. Kf3 {[%clk 0:00:09]} 41... Rxb2
{[%clk 0:00:14.7]} 42. Bxb2 {[%clk 0:00:09.9]} 42... Bxb4 {[%clk 0:00:14.7]} 43.
Kxe3 {[%clk 0:00:09.9]} 43... Kg8 {[%clk 0:00:14]} 44. Ke4 {[%clk 0:00:10.3]}
44... Kf7 {[%clk 0:00:14.1]} 45. Be5 {[%clk 0:00:09.8]} 45... Be7 {[%clk
0:00:12.9]} 46. Kd4 {[%clk 0:00:09.3]} 46... b5 {[%clk 0:00:11.8]} 47. d6 {[%clk
0:00:08.2]} 47... Bd8 {[%clk 0:00:12.4]} 48. Kd5 {[%clk 0:00:08.7]} 48... a5
{[%clk 0:00:12.1]} 49. Kc5 {[%clk 0:00:08.9]} 49... b4 {[%clk 0:00:12.3]} 50.
Kb5 {[%clk 0:00:08.2]} 50... h5 {[%clk 0:00:11.3]} 51. Ka4 {[%clk 0:00:07.3]}
51... g6 {[%clk 0:00:10.9]} 52. fxg6+ {[%clk 0:00:07]} 52... Kxg6 {[%clk
0:00:11.8]} 53. Kb3 {[%clk 0:00:07.5]} 53... Kf5 {[%clk 0:00:12.1]} 54. Ka4
{[%clk 0:00:08.2]} 54... Ke6 {[%clk 0:00:11.7]} 55. Kb3 {[%clk 0:00:08.5]} 55...
Kd7 {[%clk 0:00:11.5]} 56. Ka4 {[%clk 0:00:08.9]} 56... Kc6 {[%clk 0:00:11.9]}
57. Kb3 {[%clk 0:00:09.4]} 57... Bb6 {[%clk 0:00:12.3]} 58. Ka4 {[%clk
0:00:09.4]} 58... Kd7 {[%clk 0:00:12]} 59. Kb3 {[%clk 0:00:09.6]} 59... Bc5
{[%clk 0:00:12.5]} 60. Ka4 {[%clk 0:00:10]} 60... Bxd6 {[%clk 0:00:12.9]} 61.
Bd4 {[%clk 0:00:08.5]} 61... Bc7 {[%clk 0:00:12.8]} 62. f5 {[%clk 0:00:07.9]}
62... Ke7 {[%clk 0:00:12.4]} 63. f6+ {[%clk 0:00:07.5]} 63... Kf7 {[%clk
0:00:12.7]} 64. Kb3 {[%clk 0:00:08.2]} 64... Bd8 {[%clk 0:00:13]} 65. Ka4 {[%clk
0:00:08.6]} 65... Ke6 {[%clk 0:00:10.7]} 66. Kb3 {[%clk 0:00:07.7]} 66... Bxf6
{[%clk 0:00:10.5]} 67. Bb6 {[%clk 0:00:07.3]} 67... Kf5 {[%clk 0:00:10.2]} 68.
Bxa5 {[%clk 0:00:07.5]} 68... Bc3 {[%clk 0:00:10.2]} 69. Bxb4 {[%clk 0:00:07.5]}
69... Bxb4 {[%clk 0:00:10.2]} 70. Kxb4 {[%clk 0:00:08.4]} 70... Kf4 {[%clk
0:00:11]} 71. Kc3 {[%clk 0:00:09.3]} 71... Kg3 {[%clk 0:00:11.7]} 72. Kd2 {[%clk
0:00:10.2]} 72... Kxh3 {[%clk 0:00:12.4]} 73. Ke1 {[%clk 0:00:11.1]} 73... Kg2
{[%clk 0:00:13.2]} 74. Ke2 {[%clk 0:00:11.4]} 74... h4 {[%clk 0:00:13.9]} 75.
Ke3 {[%clk 0:00:12.3]} 75... h3 {[%clk 0:00:14.8]} 76. Kf4 {[%clk 0:00:12.9]}
76... h2 {[%clk 0:00:15.7]} 0-1

[Event "Early-Titled-Tuesday-Blitz-February-06-2024"]
[Site "Chess.com"]
[Date "2024.02.06"]
[Round "4"]
[White "WhiteKnight2612"]
[Black "Yan_Dyomin2010"]
[Result "1-0"]
[WhiteElo "2864"]
[BlackElo "2590"]
[TimeControl "180+1"]
[EndTime "8:40:58 PST"]
[Termination "WhiteKnight2612 won by resignation"]

1. e4 {[%clk 0:03:00.9]} 1... c5 {[%clk 0:03:00.5]} 2. Nf3 {[%clk 0:03:00]} 2...
Nc6 {[%clk 0:03:01.1]} 3. Bb5 {[%clk 0:03:00]} 3... e6 {[%clk 0:02:57.8]} 4. O-O
{[%clk 0:02:58.8]} 4... Nge7 {[%clk 0:02:57]} 5. c4 {[%clk 0:02:59.4]} 5... a6
{[%clk 0:02:55.2]} 6. Ba4 {[%clk 0:02:59.4]} 6... Ng6 {[%clk 0:02:55]} 7. Nc3
{[%clk 0:02:59.5]} 7... Be7 {[%clk 0:02:51.9]} 8. d4 {[%clk 0:02:59.8]} 8...
cxd4 {[%clk 0:02:52.4]} 9. Nxd4 {[%clk 0:03:00.4]} 9... O-O {[%clk 0:02:52.6]}
10. Be3 {[%clk 0:03:00.7]} 10... Nxd4 {[%clk 0:02:51.2]} 11. Bxd4 {[%clk
0:03:00.4]} 11... d6 {[%clk 0:02:52.1]} 12. Bc2 {[%clk 0:02:59.9]} 12... Bd7
{[%clk 0:02:50.5]} 13. f4 {[%clk 0:02:59.6]} 13... Nxf4 {[%clk 0:02:37.1]} 14.
Rxf4 {[%clk 0:02:56.4]} 14... e5 {[%clk 0:02:34.8]} 15. Rf3 {[%clk 0:02:47.5]}
15... exd4 {[%clk 0:02:32.4]} 16. Qxd4 {[%clk 0:02:48.4]} 16... Be6 {[%clk
0:02:32.3]} 17. Nd5 {[%clk 0:02:46.3]} 17... Bxd5 {[%clk 0:02:12.3]} 18. Qxd5
{[%clk 0:02:46.8]} 18... Qb6+ {[%clk 0:02:10.5]} 19. Rf2 {[%clk 0:02:45.4]}
19... Bf6 {[%clk 0:02:06.1]} 20. Kf1 {[%clk 0:02:31.9]} 20... Rac8 {[%clk
0:01:57.1]} 21. Rd1 {[%clk 0:02:28.9]} 21... Be5 {[%clk 0:01:55.5]} 22. b3
{[%clk 0:02:26.2]} 22... Rc5 {[%clk 0:01:50.8]} 23. Qd3 {[%clk 0:02:26.2]} 23...
Qd8 {[%clk 0:01:47.2]} 24. Qh3 {[%clk 0:02:26]} 24... b5 {[%clk 0:01:43.7]} 25.
Bd3 {[%clk 0:02:24.2]} 25... g6 {[%clk 0:01:36.1]} 26. Rf3 {[%clk 0:02:22.1]}
26... Qa5 {[%clk 0:01:32.3]} 27. Rf2 {[%clk 0:02:21.4]} 27... Qc3 {[%clk
0:01:29]} 28. Rc2 {[%clk 0:02:10.4]} 28... Qd4 {[%clk 0:01:21.2]} 29. Qf3 {[%clk
0:02:10.6]} 29... Bxh2 {[%clk 0:01:16.9]} 30. Ke2 {[%clk 0:02:10.3]} 30... Qe5
{[%clk 0:01:05.9]} 31. Rh1 {[%clk 0:02:05.7]} 31... bxc4 {[%clk 0:01:02.2]} 32.
Bxc4 {[%clk 0:02:03]} 32... d5 {[%clk 0:01:01.6]} 33. Bd3 {[%clk 0:02:03]} 33...
dxe4 {[%clk 0:01:01.2]} 34. Qxe4 {[%clk 0:02:02.5]} 34... Rxc2+ {[%clk
0:01:00.2]} 35. Bxc2 {[%clk 0:02:02.5]} 35... Qh5+ {[%clk 0:00:54.1]} 36. g4
{[%clk 0:02:01.5]} 36... Qh4 {[%clk 0:00:48.9]} 37. Bd3 {[%clk 0:01:55.1]} 37...
Qg3 {[%clk 0:00:38.8]} 38. Rf1 {[%clk 0:01:53.6]} 38... Qd6 {[%clk 0:00:28.5]}
39. Bc4 {[%clk 0:01:48.2]} 39... Kg7 {[%clk 0:00:28.3]} 40. Rf2 {[%clk
0:01:39.8]} 40... Be5 {[%clk 0:00:26.9]} 41. Qb7 {[%clk 0:01:35.7]} 41... Bf6
{[%clk 0:00:25.2]} 42. Kf1 {[%clk 0:01:26.2]} 42... Qd1+ {[%clk 0:00:24.1]} 43.
Kg2 {[%clk 0:01:24.9]} 43... Qxg4+ {[%clk 0:00:25]} 44. Kf1 {[%clk 0:01:25.8]}
44... Qd1+ {[%clk 0:00:24.4]} 45. Kg2 {[%clk 0:01:26.3]} 45... Qg4+ {[%clk
0:00:22.2]} 46. Kf1 {[%clk 0:01:26.5]} 46... Qd4 {[%clk 0:00:20.3]} 47. Qxa6
{[%clk 0:01:19.9]} 47... h5 {[%clk 0:00:20.5]} 48. Qb7 {[%clk 0:01:15.2]} 48...
h4 {[%clk 0:00:20.5]} 49. Qd5 {[%clk 0:01:14.3]} 49... Qa1+ {[%clk 0:00:19.5]}
50. Kg2 {[%clk 0:01:14.3]} 50... Bd4 {[%clk 0:00:19]} 51. Rxf7+ {[%clk
0:01:13.4]} 51... Rxf7 {[%clk 0:00:17.1]} 52. Qxf7+ {[%clk 0:01:14.3]} 52... Kh6
{[%clk 0:00:18]} 53. Qf8+ {[%clk 0:01:14.8]} 53... Kg5 {[%clk 0:00:18.6]} 54.
Qd8+ {[%clk 0:01:14.7]} 54... Bf6 {[%clk 0:00:18.5]} 55. Qd5+ {[%clk 0:01:14.7]}
55... Kh6 {[%clk 0:00:18.6]} 56. Qd2+ {[%clk 0:01:14.8]} 56... g5 {[%clk
0:00:18.1]} 57. Qf2 {[%clk 0:01:13.4]} 57... Qe5 {[%clk 0:00:17.6]} 58. Qf3
{[%clk 0:01:08.6]} 58... Kg7 {[%clk 0:00:15.5]} 59. Qb7+ {[%clk 0:01:06.6]}
59... Kh6 {[%clk 0:00:14.9]} 60. Qf3 {[%clk 0:01:06]} 60... Qb2+ {[%clk
0:00:15.4]} 61. Kh3 {[%clk 0:01:05.8]} 61... Be5 {[%clk 0:00:14.8]} 62. Qc6+
{[%clk 0:01:03.9]} 62... Bf6 {[%clk 0:00:13.6]} 63. Qf3 {[%clk 0:01:00.9]} 63...
Qe5 {[%clk 0:00:13.6]} 64. a4 {[%clk 0:00:58.6]} 64... Be7 {[%clk 0:00:13.5]}
65. Bf7 {[%clk 0:00:50.6]} 65... Bd6 {[%clk 0:00:11.4]} 66. Qh5+ {[%clk
0:00:50.4]} 66... Kg7 {[%clk 0:00:12]} 67. Qg6+ {[%clk 0:00:51.1]} 67... Kf8
{[%clk 0:00:12.7]} 68. Qg8+ {[%clk 0:00:51.6]} 68... Ke7 {[%clk 0:00:13.4]} 69.
Qe8+ {[%clk 0:00:52]} 69... Kf6 {[%clk 0:00:14]} 70. Qxe5+ {[%clk 0:00:51.6]}
70... Bxe5 {[%clk 0:00:13.2]} 71. Bc4 {[%clk 0:00:50.9]} 71... Bc3 {[%clk
0:00:13.6]} 72. Kg4 {[%clk 0:00:50.1]} 72... Bb4 {[%clk 0:00:14.2]} 73. Bf1
{[%clk 0:00:50.2]} 73... Ba5 {[%clk 0:00:14.9]} 74. Kf3 {[%clk 0:00:50.3]} 74...
Bb4 {[%clk 0:00:15.8]} 75. Ke4 {[%clk 0:00:50.4]} 75... Ba5 {[%clk 0:00:16.7]}
76. Bh3 {[%clk 0:00:50.3]} 76... Bb4 {[%clk 0:00:17.6]} 77. Kd5 {[%clk
0:00:50.6]} 77... Ba5 {[%clk 0:00:16.9]} 78. Kc5 {[%clk 0:00:49.4]} 78... Ke5
{[%clk 0:00:17.5]} 79. b4 {[%clk 0:00:50]} 79... Bc7 {[%clk 0:00:17.3]} 80. a5
{[%clk 0:00:50.6]} 80... Kf4 {[%clk 0:00:17.8]} 81. Kc6 {[%clk 0:00:49.2]} 81...
Be5 {[%clk 0:00:17.1]} 82. a6 {[%clk 0:00:48.7]} 82... Bd4 {[%clk 0:00:17]} 83.
b5 {[%clk 0:00:49.4]} 83... g4 {[%clk 0:00:17.4]} 84. Bf1 {[%clk 0:00:48.8]}
84... h3 {[%clk 0:00:13.1]} 85. b6 {[%clk 0:00:49.3]} 85... Kf3 {[%clk
0:00:11.6]} 86. a7 {[%clk 0:00:49.1]} 86... Kf2 {[%clk 0:00:11.4]} 1-0